[Event "*** Titled Tuesday Blitz"]
[Site "Chess.com"]
[Date "2020.05.19"]
[Round "8"]
[White "hongnhung1234"]
[Black "JLRHei"]
[Result "0-1"]
[WhiteElo "2190"]
[BlackElo "2328"]
[TimeControl "180+1"]
[EndTime "13:37:21 PDT"]
[Termination "JLRHei won by checkmate"]

1. e4 {[%clk 0:02:59]} 1... c5 {[%clk 0:02:58.2]} 2. Nc3 {[%clk 0:02:58.7]} 2...
e6 {[%clk 0:02:58.8]} 3. f4 {[%clk 0:02:58.9]} 3... Nf6 {[%clk 0:02:57.5]} 4.
Nf3 {[%clk 0:02:55.9]} 4... d5 {[%clk 0:02:57.1]} 5. Bb5+ {[%clk 0:02:55.8]}
5... Bd7 {[%clk 0:02:56.7]} 6. Bxd7+ {[%clk 0:02:51.8]} 6... Qxd7 {[%clk
0:02:57.1]} 7. e5 {[%clk 0:02:50.9]} 7... Ng4 {[%clk 0:02:53.5]} 8. O-O {[%clk
0:02:47.9]} 8... Be7 {[%clk 0:02:53.8]} 9. d3 {[%clk 0:02:47.1]} 9... O-O {[%clk
0:02:53.6]} 10. Ng5 {[%clk 0:02:41.2]} 10... Bxg5 {[%clk 0:02:41.7]} 11. Qxg4
{[%clk 0:02:40.9]} 11... Be7 {[%clk 0:02:40.9]} 12. Bd2 {[%clk 0:02:34.2]} 12...
f5 {[%clk 0:02:38.6]} 13. exf6 {[%clk 0:02:30.7]} 13... Rxf6 {[%clk 0:02:37.5]}
14. Rae1 {[%clk 0:02:23.7]} 14... Nc6 {[%clk 0:02:37.6]} 15. Rf3 {[%clk
0:01:39.1]} 15... Nd4 {[%clk 0:02:08.9]} 16. Rg3 {[%clk 0:01:38.1]} 16... Nf5
{[%clk 0:02:02.6]} 17. Rh3 {[%clk 0:01:33.8]} 17... Rg6 {[%clk 0:02:00.5]} 18.
Qh5 {[%clk 0:01:29.3]} 18... Rh6 {[%clk 0:01:59.7]} 19. Qg4 {[%clk 0:01:29]}
19... Rxh3 {[%clk 0:01:57.1]} 20. Qxh3 {[%clk 0:01:29.9]} 20... Re8 {[%clk
0:01:51.3]} 21. Nd1 {[%clk 0:01:19.4]} 21... Bd6 {[%clk 0:01:47.9]} 22. Nf2
{[%clk 0:01:15.9]} 22... Qc7 {[%clk 0:01:41.7]} 23. Qf3 {[%clk 0:01:04.8]} 23...
Nd4 {[%clk 0:01:40]} 24. Qh5 {[%clk 0:01:02.2]} 24... Qf7 {[%clk 0:01:32.7]} 25.
Qxf7+ {[%clk 0:00:59.2]} 25... Kxf7 {[%clk 0:01:33]} 26. c3 {[%clk 0:01:00.1]}
26... Nc6 {[%clk 0:01:28.3]} 27. Ng4 {[%clk 0:00:59.3]} 27... h6 {[%clk
0:01:22.3]} 28. g3 {[%clk 0:00:50.2]} 28... b5 {[%clk 0:01:19.1]} 29. Kg2 {[%clk
0:00:49.3]} 29... a5 {[%clk 0:01:18]} 30. Kf3 {[%clk 0:00:48.9]} 30... b4 {[%clk
0:01:17.1]} 31. Be3 {[%clk 0:00:46.3]} 31... bxc3 {[%clk 0:01:12.3]} 32. bxc3
{[%clk 0:00:47.2]} 32... Rb8 {[%clk 0:01:12.9]} 33. Ne5+ {[%clk 0:00:44.8]}
33... Bxe5 {[%clk 0:01:11.5]} 34. fxe5 {[%clk 0:00:45.7]} 34... Nxe5+ {[%clk
0:01:12.4]} 35. Kg2 {[%clk 0:00:41.5]} 35... Rb2+ {[%clk 0:01:07.6]} 36. Kh3
{[%clk 0:00:41.3]} 36... Rxh2+ {[%clk 0:00:53.8]} 37. Kxh2 {[%clk 0:00:40.1]}
37... Nf3+ {[%clk 0:00:54.7]} 38. Kh3 {[%clk 0:00:38.9]} 38... Nxe1 {[%clk
0:00:55.6]} 39. Bxc5 {[%clk 0:00:38.6]} 39... Nxd3 {[%clk 0:00:54.5]} 40. Bb6
{[%clk 0:00:38.2]} 40... a4 {[%clk 0:00:54.4]} 41. Bd4 {[%clk 0:00:36.9]} 41...
e5 {[%clk 0:00:53.3]} 42. Be3 {[%clk 0:00:36]} 42... Kf6 {[%clk 0:00:44.5]} 43.
Kg2 {[%clk 0:00:35.1]} 43... Kf5 {[%clk 0:00:44.9]} 44. Kf3 {[%clk 0:00:34.5]}
44... h5 {[%clk 0:00:44.7]} 45. Bd2 {[%clk 0:00:32.7]} 45... g5 {[%clk
0:00:43.9]} 46. Ke3 {[%clk 0:00:32.6]} 46... Nc5 {[%clk 0:00:43.2]} 47. Bc1
{[%clk 0:00:32.3]} 47... Ne4 {[%clk 0:00:43.4]} 48. Kf3 {[%clk 0:00:30.8]} 48...
Nxc3 {[%clk 0:00:43.2]} 49. a3 {[%clk 0:00:31.1]} 49... Nb5 {[%clk 0:00:39.3]}
50. Bb2 {[%clk 0:00:30.5]} 50... h4 {[%clk 0:00:36.9]} 51. g4+ {[%clk
0:00:29.6]} 51... Ke6 {[%clk 0:00:37.6]} 52. Ke3 {[%clk 0:00:28]} 52... Nd6
{[%clk 0:00:35.6]} 53. Kf3 {[%clk 0:00:27.3]} 53... Nc4 {[%clk 0:00:36.1]} 54.
Bc1 {[%clk 0:00:27.3]} 54... e4+ {[%clk 0:00:36.2]} 55. Kg2 {[%clk 0:00:26.9]}
55... e3 {[%clk 0:00:35.2]} 56. Kf3 {[%clk 0:00:26.2]} 56... Ke5 {[%clk
0:00:34.9]} 57. Ke2 {[%clk 0:00:23.2]} 57... Ke4 {[%clk 0:00:33.6]} 58. Kf1
{[%clk 0:00:23.3]} 58... d4 {[%clk 0:00:33.5]} 59. Kg2 {[%clk 0:00:23.4]} 59...
d3 {[%clk 0:00:33.7]} 60. Kh3 {[%clk 0:00:22.9]} 60... d2 {[%clk 0:00:33.2]} 61.
Bb2 {[%clk 0:00:22.6]} 61... d1=Q {[%clk 0:00:32.2]} 62. Be5 {[%clk 0:00:22.3]}
62... Qh1+ {[%clk 0:00:22.9]} 63. Bh2 {[%clk 0:00:22.5]} 63... Qf3+ {[%clk
0:00:22.9]} 64. Bg3 {[%clk 0:00:23.2]} 64... Qxg3# {[%clk 0:00:23.2]} 0-1

[Event "*** Titled Tuesday Blitz"]
[Site "Chess.com"]
[Date "2020.05.19"]
[Round "8"]
[White "Noam_Vitenberg"]
[Black "EnergeticHay"]
[Result "0-1"]
[WhiteElo "2386"]
[BlackElo "2166"]
[TimeControl "180+1"]
[EndTime "13:37:21 PDT"]
[Termination "EnergeticHay won on time"]

1. e4 {[%clk 0:03:00.6]} 1... c5 {[%clk 0:02:59.9]} 2. Nf3 {[%clk 0:02:47.5]}
2... d6 {[%clk 0:02:59.6]} 3. d4 {[%clk 0:02:40.7]} 3... cxd4 {[%clk 0:03:00.5]}
4. Nxd4 {[%clk 0:02:40.1]} 4... Nf6 {[%clk 0:03:00.9]} 5. Nc3 {[%clk 0:02:38.2]}
5... a6 {[%clk 0:03:01.2]} 6. Be3 {[%clk 0:02:32.9]} 6... e6 {[%clk 0:03:01.1]}
7. Be2 {[%clk 0:02:29.4]} 7... Qc7 {[%clk 0:02:57.8]} 8. Qd2 {[%clk 0:02:26.4]}
8... b5 {[%clk 0:02:54.7]} 9. f3 {[%clk 0:02:20.2]} 9... Nbd7 {[%clk 0:02:47.1]}
10. O-O-O {[%clk 0:02:11.6]} 10... b4 {[%clk 0:02:35.2]} 11. Na4 {[%clk
0:02:10.4]} 11... d5 {[%clk 0:02:28.9]} 12. exd5 {[%clk 0:02:02.4]} 12... Nxd5
{[%clk 0:02:29.8]} 13. Bg5 {[%clk 0:02:00.7]} 13... h6 {[%clk 0:02:16.3]} 14.
Bh4 {[%clk 0:01:56.1]} 14... Qf4 {[%clk 0:02:12.5]} 15. Bg3 {[%clk 0:01:45.6]}
15... Qxd2+ {[%clk 0:02:11.1]} 16. Rxd2 {[%clk 0:01:46.5]} 16... Bb7 {[%clk
0:02:00.4]} 17. Re1 {[%clk 0:01:36.3]} 17... g5 {[%clk 0:01:55.2]} 18. Bc4
{[%clk 0:01:27.6]} 18... O-O-O {[%clk 0:01:37.3]} 19. Kb1 {[%clk 0:01:22.8]}
19... Bg7 {[%clk 0:01:37.1]} 20. Nf5 {[%clk 0:01:20.6]} 20... exf5 {[%clk
0:01:25.5]} 21. Bxd5 {[%clk 0:01:17.3]} 21... f4 {[%clk 0:01:11.8]} 22. Bf2
{[%clk 0:01:13.2]} 22... Ne5 {[%clk 0:01:06.8]} 23. Bxb7+ {[%clk 0:01:05.6]}
23... Kxb7 {[%clk 0:01:07.7]} 24. Rde2 {[%clk 0:01:05.4]} 24... Kc6 {[%clk
0:00:58]} 25. b3 {[%clk 0:01:00.4]} 25... Rhe8 {[%clk 0:00:56.3]} 26. Nc5 {[%clk
0:00:55.9]} 26... a5 {[%clk 0:00:31.2]} 27. Nd3 {[%clk 0:00:54]} 27... Nxd3
{[%clk 0:00:26.9]} 28. Rxe8 {[%clk 0:00:54.9]} 28... Rxe8 {[%clk 0:00:26.4]} 29.
Rxe8 {[%clk 0:00:55.8]} 29... Nxf2 {[%clk 0:00:26.6]} 30. Re2 {[%clk 0:00:53.6]}
30... Bd4 {[%clk 0:00:26]} 31. Re7 {[%clk 0:00:49]} 31... f5 {[%clk 0:00:23.4]}
32. Re6+ {[%clk 0:00:47]} 32... Kd5 {[%clk 0:00:23.7]} 33. Rxh6 {[%clk
0:00:47.9]} 33... Nd1 {[%clk 0:00:21.5]} 34. Ra6 {[%clk 0:00:43.8]} 34... Ne3
{[%clk 0:00:20]} 35. Rxa5+ {[%clk 0:00:42.5]} 35... Bc5 {[%clk 0:00:20.4]} 36.
a3 {[%clk 0:00:40.9]} 36... Nxg2 {[%clk 0:00:20.5]} 37. axb4 {[%clk 0:00:40.6]}
37... Ne1 {[%clk 0:00:17.7]} 38. Rxc5+ {[%clk 0:00:39.8]} 38... Kd6 {[%clk
0:00:18.2]} 39. Rxf5 {[%clk 0:00:39.3]} 39... Nxf3 {[%clk 0:00:18.7]} 40. Kc1
{[%clk 0:00:31]} 40... Ke6 {[%clk 0:00:18.7]} 41. Rf8 {[%clk 0:00:20.9]} 41...
Ke7 {[%clk 0:00:18.7]} 42. Rg8 {[%clk 0:00:19.5]} 42... Kf7 {[%clk 0:00:19]} 43.
Rh8 {[%clk 0:00:17.9]} 43... Kg7 {[%clk 0:00:18.5]} 44. Rh3 {[%clk 0:00:15.6]}
44... g4 {[%clk 0:00:18.4]} 45. Rh5 {[%clk 0:00:14.9]} 45... Kg6 {[%clk
0:00:18.7]} 46. Rh8 {[%clk 0:00:14.6]} 46... Kg7 {[%clk 0:00:14.2]} 47. Rh5
{[%clk 0:00:09.4]} 47... Kg6 {[%clk 0:00:14.3]} 48. Rh8 {[%clk 0:00:09]} 48...
Kg7 {[%clk 0:00:11.1]} 49. Re8 {[%clk 0:00:09.9]} 49... Nxh2 {[%clk 0:00:10.4]}
50. Kd2 {[%clk 0:00:10.2]} 50... f3 {[%clk 0:00:07.9]} 51. Ke1 {[%clk
0:00:02.7]} 51... g3 {[%clk 0:00:07.5]} 52. Re7+ {[%clk 0:00:01.7]} 52... Kf6
{[%clk 0:00:07.3]} 53. Re8 {[%clk 0:00:01.3]} 53... f2+ {[%clk 0:00:07.1]} 54.
Kd2 {[%clk 0:00:01.5]} 54... Nf3+ {[%clk 0:00:04.2]} 0-1

[Event "*** Titled Tuesday Blitz"]
[Site "Chess.com"]
[Date "2020.05.19"]
[Round "8"]
[White "Gloomy_Wanderer"]
[Black "VojtechPlat"]
[Result "1-0"]
[WhiteElo "2771"]
[BlackElo "2877"]
[TimeControl "180+1"]
[EndTime "13:37:23 PDT"]
[Termination "Gloomy_Wanderer won by resignation"]

1. d4 {[%clk 0:03:00.9]} 1... d5 {[%clk 0:02:59.7]} 2. c4 {[%clk 0:03:00.7]}
2... Nc6 {[%clk 0:02:59.6]} 3. Nc3 {[%clk 0:02:57.6]} 3... e6 {[%clk 0:02:56.7]}
4. Nf3 {[%clk 0:02:55.8]} 4... Nf6 {[%clk 0:02:54.9]} 5. Bg5 {[%clk 0:02:48.3]}
5... Bb4 {[%clk 0:02:53.2]} 6. e3 {[%clk 0:02:45.2]} 6... h6 {[%clk 0:02:44.3]}
7. Bxf6 {[%clk 0:02:44.5]} 7... Qxf6 {[%clk 0:02:43.7]} 8. Qb3 {[%clk
0:02:35.3]} 8... dxc4 {[%clk 0:02:24.9]} 9. Bxc4 {[%clk 0:02:34.1]} 9... O-O
{[%clk 0:02:24.8]} 10. O-O {[%clk 0:02:33.3]} 10... Bd6 {[%clk 0:02:21]} 11. Bb5
{[%clk 0:02:24.5]} 11... Bd7 {[%clk 0:02:18.2]} 12. Rac1 {[%clk 0:02:20.4]}
12... a6 {[%clk 0:02:13.8]} 13. Bd3 {[%clk 0:02:17.8]} 13... Rab8 {[%clk
0:02:13.3]} 14. Bb1 {[%clk 0:02:14.7]} 14... Qe7 {[%clk 0:02:06.8]} 15. Qc2
{[%clk 0:02:10.1]} 15... f5 {[%clk 0:02:06.8]} 16. a3 {[%clk 0:02:07.9]} 16...
Qf7 {[%clk 0:02:01.4]} 17. Ba2 {[%clk 0:02:06.7]} 17... Ne7 {[%clk 0:01:58.2]}
18. Rfd1 {[%clk 0:01:56]} 18... Nd5 {[%clk 0:01:48.7]} 19. Ne5 {[%clk
0:01:45.7]} 19... Bxe5 {[%clk 0:01:44.7]} 20. dxe5 {[%clk 0:01:45.9]} 20... c6
{[%clk 0:01:44.9]} 21. e4 {[%clk 0:01:39]} 21... Nxc3 {[%clk 0:01:33]} 22. bxc3
{[%clk 0:01:18.4]} 22... fxe4 {[%clk 0:01:32.6]} 23. Rd6 {[%clk 0:01:15]} 23...
Rbe8 {[%clk 0:01:27.9]} 24. Re1 {[%clk 0:01:07.7]} 24... c5 {[%clk 0:01:06.4]}
25. Rxe4 {[%clk 0:01:05.6]} 25... Bc6 {[%clk 0:01:05]} 26. Re3 {[%clk
0:00:58.9]} 26... Kh8 {[%clk 0:00:58.1]} 27. f3 {[%clk 0:00:51.5]} 27... Qf4
{[%clk 0:00:53.8]} 28. Qd2 {[%clk 0:00:51.8]} 28... Rf5 {[%clk 0:00:44.7]} 29.
Re2 {[%clk 0:00:43.5]} 29... Qxd2 {[%clk 0:00:39.9]} 30. Rdxd2 {[%clk
0:00:44.4]} 30... Kg8 {[%clk 0:00:32.3]} 31. Rd6 {[%clk 0:00:38.4]} 31... Kf7
{[%clk 0:00:32.1]} 32. Kf2 {[%clk 0:00:37.6]} 32... Rf4 {[%clk 0:00:32]} 33. Bb3
{[%clk 0:00:37]} 33... c4 {[%clk 0:00:28.8]} 34. Bc2 {[%clk 0:00:35.5]} 34...
Ke7 {[%clk 0:00:25.3]} 35. Ke3 {[%clk 0:00:35.4]} 35... Rff8 {[%clk 0:00:24.3]}
36. f4 {[%clk 0:00:33.2]} 36... Rd8 {[%clk 0:00:22.7]} 37. Rxd8 {[%clk
0:00:32.5]} 37... Rxd8 {[%clk 0:00:22.1]} 38. g3 {[%clk 0:00:32.1]} 38... Rd5
{[%clk 0:00:21.9]} 39. Be4 {[%clk 0:00:29.3]} 39... Ra5 {[%clk 0:00:20.4]} 40.
Bxc6 {[%clk 0:00:28.6]} 40... bxc6 {[%clk 0:00:20.7]} 41. Rb2 {[%clk 0:00:27]}
41... Rd5 {[%clk 0:00:20.7]} 42. Rd2 {[%clk 0:00:26.1]} 42... Rb5 {[%clk
0:00:20.1]} 43. Rd4 {[%clk 0:00:24.2]} 43... Rb6 {[%clk 0:00:19.8]} 44. Rxc4
{[%clk 0:00:24.3]} 44... Rb3 {[%clk 0:00:18]} 45. Rxc6 {[%clk 0:00:23.7]} 45...
Rxa3 {[%clk 0:00:17.8]} 46. g4 {[%clk 0:00:21.9]} 46... a5 {[%clk 0:00:17.7]}
47. f5 {[%clk 0:00:22]} 47... exf5 {[%clk 0:00:17.5]} 48. gxf5 {[%clk
0:00:22.9]} 48... Ra1 {[%clk 0:00:17.3]} 49. Kd4 {[%clk 0:00:20.2]} 49... Rd1+
{[%clk 0:00:16.8]} 50. Kc4 {[%clk 0:00:20.3]} 50... Re1 {[%clk 0:00:17.2]} 51.
Rc7+ {[%clk 0:00:20.5]} 51... Kd8 {[%clk 0:00:16.6]} 52. Rc5 {[%clk 0:00:19.7]}
52... a4 {[%clk 0:00:16.9]} 53. Kb4 {[%clk 0:00:19.8]} 53... Re4+ {[%clk
0:00:16.6]} 54. c4 {[%clk 0:00:19.7]} 54... Rf4 {[%clk 0:00:17.1]} 55. e6 {[%clk
0:00:20]} 55... Ke7 {[%clk 0:00:17]} 56. Kxa4 {[%clk 0:00:19.2]} 56... Rf2
{[%clk 0:00:16.4]} 57. Rc7+ {[%clk 0:00:17.9]} 57... Kd6 {[%clk 0:00:16.6]} 58.
Rd7+ {[%clk 0:00:17.2]} 58... Kc6 {[%clk 0:00:16.9]} 59. Rf7 {[%clk 0:00:16.2]}
59... Rxh2 {[%clk 0:00:16.2]} 60. Rxg7 {[%clk 0:00:16.5]} 60... Rf2 {[%clk
0:00:16.4]} 61. Rf7 {[%clk 0:00:16.5]} 61... h5 {[%clk 0:00:16.8]} 62. f6 {[%clk
0:00:16.7]} 62... h4 {[%clk 0:00:17.1]} 63. e7 {[%clk 0:00:17.1]} 63... Kd7
{[%clk 0:00:14.6]} 64. Rf8 {[%clk 0:00:17.3]} 1-0

[Event "*** Titled Tuesday Blitz"]
[Site "Chess.com"]
[Date "2020.05.19"]
[Round "8"]
[White "TenisMaster"]
[Black "CaspiIsrael"]
[Result "1-0"]
[WhiteElo "2793"]
[BlackElo "2609"]
[TimeControl "180+1"]
[EndTime "13:37:23 PDT"]
[Termination "TenisMaster won by checkmate"]

1. e4 {[%clk 0:03:00.7]} 1... e5 {[%clk 0:02:57.1]} 2. Nf3 {[%clk 0:03:00.8]}
2... Nc6 {[%clk 0:02:56.6]} 3. Bb5 {[%clk 0:03:01.3]} 3... g6 {[%clk 0:02:56]}
4. d4 {[%clk 0:02:58]} 4... exd4 {[%clk 0:02:54.9]} 5. Bg5 {[%clk 0:02:57]} 5...
Be7 {[%clk 0:02:54.6]} 6. Bxe7 {[%clk 0:02:55.7]} 6... Qxe7 {[%clk 0:02:55.5]}
7. Bxc6 {[%clk 0:02:55.3]} 7... dxc6 {[%clk 0:02:55.4]} 8. Qxd4 {[%clk
0:02:55.9]} 8... Nf6 {[%clk 0:02:55.9]} 9. Nc3 {[%clk 0:02:54.6]} 9... Bg4
{[%clk 0:02:54]} 10. Nd2 {[%clk 0:02:54.2]} 10... c5 {[%clk 0:02:53.6]} 11. Qe3
{[%clk 0:02:51.3]} 11... O-O-O {[%clk 0:02:53.8]} 12. f3 {[%clk 0:02:47.8]}
12... Bd7 {[%clk 0:02:53.5]} 13. O-O-O {[%clk 0:02:47.3]} 13... Bc6 {[%clk
0:02:47.5]} 14. h4 {[%clk 0:02:41.1]} 14... h5 {[%clk 0:02:39.4]} 15. Qg5 {[%clk
0:02:39.2]} 15... b6 {[%clk 0:02:25.9]} 16. Nc4 {[%clk 0:02:05.9]} 16... Qe6
{[%clk 0:02:24.8]} 17. Qe5 {[%clk 0:01:52.5]} 17... Rde8 {[%clk 0:01:54.9]} 18.
Qxe6+ {[%clk 0:01:45.9]} 18... Rxe6 {[%clk 0:01:55.8]} 19. b3 {[%clk 0:01:42.1]}
19... Rd8 {[%clk 0:01:53.1]} 20. a4 {[%clk 0:01:38.6]} 20... a6 {[%clk
0:01:39.5]} 21. Ne2 {[%clk 0:01:26.6]} 21... Ree8 {[%clk 0:01:22.5]} 22. Nf4
{[%clk 0:01:22.9]} 22... Nd7 {[%clk 0:01:13.3]} 23. Rd3 {[%clk 0:01:13.1]} 23...
Nf8 {[%clk 0:01:04.3]} 24. Rhd1 {[%clk 0:01:11]} 24... Rxd3 {[%clk 0:01:03.7]}
25. Nxd3 {[%clk 0:01:05.7]} 25... Re7 {[%clk 0:01:00.1]} 26. a5 {[%clk 0:00:52]}
26... Kb7 {[%clk 0:00:41.8]} 27. Nde5 {[%clk 0:00:49.6]} 27... b5 {[%clk
0:00:25]} 28. Nxc6 {[%clk 0:00:48.5]} 28... Kxc6 {[%clk 0:00:25.9]} 29. Ne3
{[%clk 0:00:44.8]} 29... Ne6 {[%clk 0:00:26]} 30. Nd5 {[%clk 0:00:40.8]} 30...
Rd7 {[%clk 0:00:25.5]} 31. c3 {[%clk 0:00:38.2]} 31... Kb7 {[%clk 0:00:20.2]}
32. Kc2 {[%clk 0:00:27]} 32... c6 {[%clk 0:00:18.7]} 33. Nf6 {[%clk 0:00:26]}
33... Rxd1 {[%clk 0:00:18.4]} 34. Kxd1 {[%clk 0:00:26.9]} 34... Nf4 {[%clk
0:00:18.9]} 35. g3 {[%clk 0:00:25.1]} 35... Nd3 {[%clk 0:00:18.7]} 36. Kd2
{[%clk 0:00:22.4]} 36... c4 {[%clk 0:00:17.5]} 37. bxc4 {[%clk 0:00:21.1]} 37...
bxc4 {[%clk 0:00:18.4]} 38. Ne8 {[%clk 0:00:20.6]} 38... Ne5 {[%clk 0:00:13.5]}
39. f4 {[%clk 0:00:20.7]} 39... Nf3+ {[%clk 0:00:09.7]} 40. Ke3 {[%clk
0:00:20.4]} 40... Nh2 {[%clk 0:00:09.2]} 41. Nd6+ {[%clk 0:00:20.9]} 41... Kc7
{[%clk 0:00:09.9]} 42. Nxf7 {[%clk 0:00:20.9]} 42... Nf1+ {[%clk 0:00:09.9]} 43.
Kf2 {[%clk 0:00:20.6]} 43... Nd2 {[%clk 0:00:10.3]} 44. Ke3 {[%clk 0:00:20.8]}
44... Nf1+ {[%clk 0:00:10.2]} 45. Kd4 {[%clk 0:00:20.5]} 45... Nxg3 {[%clk
0:00:10.1]} 46. Ne5 {[%clk 0:00:20.8]} 46... Ne2+ {[%clk 0:00:07.4]} 47. Ke3
{[%clk 0:00:20.9]} 47... Nxc3 {[%clk 0:00:07.4]} 48. Nxg6 {[%clk 0:00:21.5]}
48... Nb5 {[%clk 0:00:06.5]} 49. f5 {[%clk 0:00:21.4]} 49... Kd7 {[%clk
0:00:07.4]} 50. e5 {[%clk 0:00:21.1]} 50... Ke8 {[%clk 0:00:08.2]} 51. e6 {[%clk
0:00:20.8]} 51... c3 {[%clk 0:00:09.1]} 52. f6 {[%clk 0:00:20.5]} 52... Nd6
{[%clk 0:00:09.5]} 53. Kd3 {[%clk 0:00:19.8]} 53... c2 {[%clk 0:00:09.6]} 54.
Kxc2 {[%clk 0:00:19.7]} 54... Nf7 {[%clk 0:00:08.6]} 55. exf7+ {[%clk
0:00:18.8]} 55... Kxf7 {[%clk 0:00:09.5]} 56. Nf4 {[%clk 0:00:18.8]} 56... Kxf6
{[%clk 0:00:09.6]} 57. Nxh5+ {[%clk 0:00:19]} 57... Kf5 {[%clk 0:00:10.5]} 58.
Ng3+ {[%clk 0:00:19.4]} 58... Kg4 {[%clk 0:00:10.7]} 59. h5 {[%clk 0:00:20]}
59... Kxg3 {[%clk 0:00:08.7]} 60. h6 {[%clk 0:00:19.6]} 60... Kf4 {[%clk
0:00:09.6]} 61. h7 {[%clk 0:00:19.7]} 61... Ke5 {[%clk 0:00:10.5]} 62. h8=Q+
{[%clk 0:00:20.1]} 62... Kd5 {[%clk 0:00:11.4]} 63. Qc8 {[%clk 0:00:19.4]} 63...
Kc5 {[%clk 0:00:12.3]} 64. Qxa6 {[%clk 0:00:19.9]} 64... Kb4 {[%clk 0:00:12.1]}
65. Qb6+ {[%clk 0:00:20.1]} 65... Ka3 {[%clk 0:00:12.9]} 66. a6 {[%clk
0:00:20.2]} 66... c5 {[%clk 0:00:12.5]} 67. a7 {[%clk 0:00:20.7]} 67... c4
{[%clk 0:00:13.4]} 68. a8=Q# {[%clk 0:00:20.9]} 1-0

[Event "*** Titled Tuesday Blitz"]
[Site "Chess.com"]
[Date "2020.05.19"]
[Round "8"]
[White "PIwan"]
[Black "Bathory44"]
[Result "0-1"]
[WhiteElo "2501"]
[BlackElo "2590"]
[TimeControl "180+1"]
[EndTime "13:37:23 PDT"]
[Termination "Bathory44 won by resignation"]

1. c4 {[%clk 0:03:00.9]} 1... Nf6 {[%clk 0:02:58.9]} 2. Nc3 {[%clk 0:03:00.5]}
2... g6 {[%clk 0:02:59.5]} 3. e4 {[%clk 0:03:00.5]} 3... d6 {[%clk 0:02:59.8]}
4. d4 {[%clk 0:03:01]} 4... Bg7 {[%clk 0:03:00.4]} 5. f3 {[%clk 0:03:01.6]} 5...
O-O {[%clk 0:02:59.1]} 6. Bg5 {[%clk 0:03:02.1]} 6... c5 {[%clk 0:02:58.4]} 7.
d5 {[%clk 0:03:02.3]} 7... e6 {[%clk 0:02:58.7]} 8. Qd2 {[%clk 0:03:02.3]} 8...
exd5 {[%clk 0:02:58.6]} 9. cxd5 {[%clk 0:03:03.2]} 9... a6 {[%clk 0:02:58]} 10.
a4 {[%clk 0:03:03.2]} 10... Nbd7 {[%clk 0:02:57]} 11. Nge2 {[%clk 0:03:03.1]}
11... h6 {[%clk 0:02:53.5]} 12. Be3 {[%clk 0:03:01]} 12... Re8 {[%clk
0:02:50.2]} 13. Nc1 {[%clk 0:02:46.6]} 13... Nh5 {[%clk 0:02:39.1]} 14. Be2
{[%clk 0:02:43.4]} 14... Qh4+ {[%clk 0:02:37.7]} 15. Bf2 {[%clk 0:02:41.3]}
15... Qg5 {[%clk 0:02:35.1]} 16. Qxg5 {[%clk 0:02:35.9]} 16... hxg5 {[%clk
0:02:36]} 17. Be3 {[%clk 0:02:14.2]} 17... Nf4 {[%clk 0:02:28.1]} 18. Bf1 {[%clk
0:02:06.1]} 18... Ne5 {[%clk 0:01:59.2]} 19. g3 {[%clk 0:01:54.3]} 19... Nh5
{[%clk 0:01:49.6]} 20. Kf2 {[%clk 0:01:46.1]} 20... g4 {[%clk 0:01:45.9]} 21. f4
{[%clk 0:01:38.6]} 21... Nf3 {[%clk 0:01:44.8]} 22. Bg2 {[%clk 0:01:25.1]} 22...
Bxc3 {[%clk 0:01:33.8]} 23. bxc3 {[%clk 0:01:18.5]} 23... Nf6 {[%clk 0:01:33.9]}
24. Bxf3 {[%clk 0:01:15.6]} 24... gxf3 {[%clk 0:01:34.2]} 25. Kxf3 {[%clk
0:01:15.4]} 25... Bg4+ {[%clk 0:01:33.9]} 26. Kg2 {[%clk 0:01:13.5]} 26... Rxe4
{[%clk 0:01:33.5]} 27. Bf2 {[%clk 0:01:01.8]} 27... Nxd5 {[%clk 0:01:29.1]} 28.
h3 {[%clk 0:00:49.4]} 28... Bd7 {[%clk 0:01:28.5]} 29. Rd1 {[%clk 0:00:42.5]}
29... Bc6 {[%clk 0:01:17.5]} 30. Kg1 {[%clk 0:00:24.4]} 30... Rae8 {[%clk
0:01:16]} 31. c4 {[%clk 0:00:20.4]} 31... Nc3 {[%clk 0:00:52.4]} 32. Rxd6 {[%clk
0:00:21.3]} 32... Rxc4 {[%clk 0:00:52.2]} 33. Nd3 {[%clk 0:00:19.1]} 33... Ne2+
{[%clk 0:00:52]} 34. Kf1 {[%clk 0:00:18.5]} 34... Rxa4 {[%clk 0:00:43.1]} 35.
Re1 {[%clk 0:00:10.4]} 35... Rae4 {[%clk 0:00:25.8]} 36. Ne5 {[%clk 0:00:04.5]}
36... Bb5 {[%clk 0:00:20.9]} 37. Kg2 {[%clk 0:00:01.7]} 37... Kg7 {[%clk
0:00:19.4]} 38. Kf3 {[%clk 0:00:01.9]} 38... Ra4 {[%clk 0:00:13.7]} 39. Rxe2
{[%clk 0:00:02]} 39... Bxe2+ {[%clk 0:00:13.8]} 40. Kxe2 {[%clk 0:00:02.9]}
40... f6 {[%clk 0:00:14.7]} 41. Rd7+ {[%clk 0:00:03]} 41... Kg8 {[%clk
0:00:14.8]} 42. Rd6 {[%clk 0:00:02.7]} 42... fxe5 {[%clk 0:00:15]} 43. Rxg6+
{[%clk 0:00:03.6]} 43... Kf7 {[%clk 0:00:14.7]} 44. Rb6 {[%clk 0:00:03.3]} 44...
exf4+ {[%clk 0:00:15]} 45. Kf3 {[%clk 0:00:04.2]} 45... fxg3 {[%clk 0:00:14.3]}
46. Rxb7+ {[%clk 0:00:04.4]} 46... Kg6 {[%clk 0:00:14.7]} 47. Bxg3 {[%clk
0:00:04.1]} 47... Ra3+ {[%clk 0:00:15.1]} 48. Kg4 {[%clk 0:00:04.4]} 48... Rg8
{[%clk 0:00:13.6]} 49. Rb6+ {[%clk 0:00:03.7]} 49... Kf7+ {[%clk 0:00:13.5]} 50.
Kf5 {[%clk 0:00:04.1]} 50... Rgxg3 {[%clk 0:00:14]} 51. Rb7+ {[%clk 0:00:04.8]}
51... Ke8 {[%clk 0:00:14.5]} 52. Ke6 {[%clk 0:00:05]} 52... Rge3+ {[%clk
0:00:15]} 53. Kd6 {[%clk 0:00:05.3]} 53... Rab3 {[%clk 0:00:15.9]} 54. Ra7
{[%clk 0:00:05]} 54... Rb6+ {[%clk 0:00:15.9]} 55. Kxc5 {[%clk 0:00:05]} 55...
Rh6 {[%clk 0:00:16.2]} 56. Ra8+ {[%clk 0:00:04.7]} 56... Kd7 {[%clk 0:00:16.1]}
57. Ra7+ {[%clk 0:00:05.1]} 57... Kc8 {[%clk 0:00:16.5]} 58. Ra8+ {[%clk
0:00:05.3]} 58... Kb7 {[%clk 0:00:16.6]} 0-1